Cogmind - Beta 12 @@@ ROGUE MODE // 2023.08.30 @ 08:32:09 Player: Cmdr.Laserstrahl Result: Destroyed by G-47 Trooper with Particle Gun Performance ------------- Evolutions (2) 1000 Regions Visited (4) 800 Robots Destroyed (85) 425 Value Destroyed (2012) 2012 Prototype IDs (8) 160 Alien Tech Used (0) 0 Bonus (137) 137 TOTAL SCORE: 4534 Bonus ------- High Alert Combat Kills 104 Follower Combat Kills 33 Cogmind --------- Core Integrity 0/550 Matter 273/300 Energy 43/100 System Corruption 2% Temperature Hot (286) Movement Treading (170) Location -8/Storage Parts ------- > --- POWER (1) -------- (None) > --- PROPULSION (3) --- Armored Treads Armored Treads Armored Treads > --- UTILITY (5) ------ Heavy Armor Plating System Shield > --- WEAPON (2) ------- Particle Gun Advanced Beam Cannon > --- INVENTORY (5) ---- Advanced ECM Suite Advanced Beam Cannon Advanced Beam Cannon Peak State ------------ > --- POWER ------------ Reinforced Ion Engine > --- PROPULSION ------- Aluminum Leg Aluminum Leg Improved Aluminum Leg > --- UTILITY ---------- Improved Heat Sink Medium Storage Unit System Shield Drone Bay > --- WEAPON ----------- Pulse Rifle Improved Assault Rifle > --- INVENTORY -------- Improved Ion Engine Cooled Ion Engine Improved Cooling System Advanced ECM Suite Drone Bay Particle Gun Beam Cannon Advanced Beam Cannon Advanced Beam Cannon Advanced Beam Cannon [Rating: 27] Favorites ----------- Power Cooled Ion Engine Engine Cooled Ion Engine Propulsion Compact Wheel Treads Armored Treads Leg Aluminum Leg Wheel Compact Wheel Utility Medium Storage Unit Device Improved Heat Sink Storage Medium Storage Unit Processor Signal Interpreter Hackware System Shield Protection Light Armor Plating Weapon Autogun Energy Gun Particle Gun Energy Cannon Beam Cannon Ballistic Gun Autogun Ballistic Cannon Light Cannon Launcher Grenade Launcher Build | -11 -10 -9 -8 -8 ------- Run | Jun Mat Mat Mat Sto Slots Evolved 4 | . . 2 2 . Power . | . . . . . Propulsion 1 | . . 1 . . Utility 3 | . . 1 2 . Weapon . | . . . . . Parts Attached 79 | 6 10 32 12 19 Power 10 | 1 2 6 . 1 Engine 10 | 1 2 6 . 1 Core . | . . . . . Reactor . | . . . . . Propulsion 20 | 2 1 9 1 7 Treads 4 | . . . . 4 Leg 7 | . . 3 1 3 Wheel 9 | 2 1 6 . . Hover . | . . . . . Flight . | . . . . . Utility 20 | 1 3 5 6 5 Device 7 | . . 2 1 4 Storage 2 | 1 1 . . . Processor 2 | . 1 . 1 . Hackware 1 | . . . 1 . Protection 8 | . 1 3 3 1 Artifact . | . . . . . Weapon 29 | 2 4 12 5 6 Energy Gun 6 | . . 1 2 3 Energy Cannon 4 | . 1 . 1 2 Ballistic Gun 13 | 2 1 8 1 1 Ballistic Cannon 1 | . 1 . . . Launcher 5 | . 1 3 1 . Special Weapon . | . . . . . Impact Weapon . | . . . . . Slashing Weapon . | . . . . . Piercing Weapon . | . . . . . Special Melee Weapon . | . . . . . Unidentified Prototypes 2 | . . 1 1 . Parts Lost 33 | . 2 10 11 10 Power 3 | . 1 . 1 1 Propulsion 12 | . . 7 2 3 Utility 9 | . . 2 5 2 Weapon 9 | . 1 1 3 4 Highest Loss Streak 8 | . 1 3 8 8 To Critical Strikes . | . . . . . Average Slot Usage (%) 87 | . 95 90 91 59 Engine 9 | . 10 11 8 3 Leg 6 | . . . 25 10 Wheel 16 | . 28 23 . . Device 5 | . . 5 10 7 Storage 10 | . 14 11 9 7 Processor 7 | . 12 9 . . Hackware 2 | . . . 6 9 Protection 5 | . 1 6 13 . Energy Gun 5 | . . 7 7 7 Energy Cannon 3 | . 5 3 1 1 Ballistic Gun 10 | . 16 9 8 6 Ballistic Cannon 1 | . 5 . . . Naked Turns . | . . . . . Heaviest Build 40 | 12 19 33 40 36 Greatest Support 60 | 32 32 42 44 60 Greatest Overweight (x) 7 | . . 2 7 3 Average Overweight (x) . | . . . . . Largest Inventory Capacity 10 | 8 10 10 10 10 Average Capacity 9 | 7 9 10 10 9 Most Carried 10 | 4 10 10 10 10 Average Carried 8 | 2 8 9 9 6 Final Capacity 10 | 8 10 10 10 5 Final Carried 10 | 4 10 8 10 3 Class Distribution -------------------- 61% | Mutant 38% | Scavenger-Mutant Dominant Class ---------------- Mutant | -10/Materials Scavenger-Mutant | -9/Materials Mutant | -8/Materials Mutant | -8/Storage Resources | -11 -10 -9 -8 -8 ----------- Run | Jun Mat Mat Mat Sto Matter Collected 1855 | 260 404 713 287 191 Remotely . | . . . . . Salvage Created 3135 | . 576 1744 513 302 Parts 174 | . 38 91 27 18 Haulers Intercepted 7 | . 1 6 . . Recyclers Shooed 6 | . 2 4 . . Parts Field Recycled . | . . . . . Retrieved Matter . | . . . . . Parts Self-Destructed . | . . . . . Prevented . | . . . . . Kills | -11 -10 -9 -8 -8 ------- Run | Jun Mat Mat Mat Sto Combat Hostiles Destroyed 46 | . 7 25 6 8 Melee 1 | . . . . 1 Guns 24 | . 3 10 5 6 Cannons 9 | . 4 4 . 1 AOE 12 | . . 11 1 . Classes Destroyed 13 | . 5 6 1 1 Worker 3 | . . 3 . . Builder 4 | . 2 2 . . Tunneler 1 | . . 1 . . Hauler 7 | . 1 6 . . Recycler 13 | . 3 8 2 . Mechanic 1 | . . 1 . . Operator 2 | . . 1 1 . Watcher 8 | . 3 4 1 . Swarmer 10 | . . 8 . 2 Grunt 25 | . 7 13 . 5 Duelist 1 | . . . . 1 Sentry 8 | . . 4 4 . Specialist 2 | . . . 2 . Best Kill Streak 16 | . 4 16 2 3 Combat Bots Only 5 | . 2 5 2 3 Max Kills in Single Turn 4 | . 2 4 1 1 Gunslinging . | . . . . . Exploded 3 | . . 3 1 . Melee 1 | . . . . 1 Uniques/NPCs Destroyed . | . . . . . Combat | -11 -10 -9 -8 -8 -------- Run | Jun Mat Mat Mat Sto Damage Taken 5191 | . 518 1083 1644 1946 Core 835 | . 81 191 324 239 Absorbed by Shields . | . . . . . Regen/Repaired (Parts) 89 | . . 89 . . Core Remaining (%) 73 | 100 67 52 . . Volleys Fired 251 | . 51 123 41 36 Largest 2 | . 2 2 2 2 Hottest 133 | . 80 90 88 133 Shots Fired 456 | . 94 220 74 68 Gun 324 | . 62 142 64 56 Cannon 112 | . 28 67 5 12 Launcher 20 | . 4 11 5 . Special . | . . . . . Kinetic 236 | . 83 92 31 30 Thermal 183 | . 7 117 38 21 Explosive 20 | . 4 11 5 . Electromagnetic 17 | . . . . 17 Robot Hit Streak 19 | . 8 19 18 8 Robot Miss Streak 7 | . 3 4 2 7 Penetration Max . | . . . . . Secondary Targets . | . . . . . Shots Hit Robots 294 | . 55 142 50 47 Core Hits 136 | . 26 73 17 20 Critical Kills 3 | . . 3 . . Critical Parts Destroyed . | . . . . . Critical Strikes 15 | . . 9 5 1 Burn 12 | . . 6 5 1 Destroy 3 | . . 3 . . Melee Attacks . | . . . . . Impact . | . . . . . Slashing . | . . . . . Piercing . | . . . . . Sneak Attacks . | . . . . . Combat Hostiles . | . . . . . Follow-up Attacks . | . . . . . Damage Inflicted 5808 | . 870 3175 894 869 Guns 3343 | . 549 1441 728 625 Cannons 1295 | . 320 756 . 219 Explosions 1123 | . . 978 145 . Melee . | . . . . . Ramming 47 | . 1 . 21 25 Kinetic 2445 | . 817 900 386 342 Thermal 1912 | . 52 1297 342 221 Explosive 1123 | . . 978 145 . Electromagnetic 281 | . . . . 281 Impact . | . . . . . Slashing . | . . . . . Piercing . | . . . . . Highest Corruption 2 | . 1 . 2 2 Average Corruption 1 | . 1 . 2 2 Corruption Purged . | . . . . . Corruption Blocked . | . . . . . Effects 12 | . 5 . . 7 Message Errors 5 | . 1 . . 4 Matter Fused 4 | . 3 . . 1 Energy Discharges 1 | . . . . 1 Data Loss (minor) 2 | . 1 . . 1 Overload Shots . | . . . . . Overflow Damage 40 | . . 20 . 20 Projectiles 22 | . . 2 . 20 Explosions 18 | . . 18 . . Melee . | . . . . . Knockbacks 3 | . 3 . . . Impact . | . . . . . Kinetic 3 | . 3 . . . Secondary . | . . . . . Self-Inflicted Damage 98 | . . 77 21 . Shots 3 | . . 2 1 . Rammed 16 | . 1 . 1 14 Targets Rammed 19 | . 1 . 2 16 Kicked 2 | . . . 1 1 Crushed 1 | . . . . 1 Highest Temperature 385 | . 43 308 145 385 Average Temperature 75 | . 12 75 45 156 Received Heat Transfer 2223 | . 300 402 441 1080 Effects 1 | . . . . 1 Damage (minor) 1 | . . . . 1 Siege Activations . | . . . . . Robots Corrupted . | . . . . . Combat Hostiles . | . . . . . Parts Fried . | . . . . . Impact Corruptions . | . . . . . Robots Melted . | . . . . . Combat Hostiles . | . . . . . Parts Melted 6 | . . 3 2 1 Heat Transferred 5217 | . 111 3330 1221 555 Parts Sabotaged . | . . . . . Parts Stolen . | . . . . . Parts Stripped . | . . . . . Power Chain Reactions . | . . . . . Missiles Intercepted . | . . . . . Alert | -11 -10 -9 -8 -8 ------- Run | Jun Mat Mat Mat Sto Peak Influence 648 | . 201 648 371 275 Initial 230 | . . 1 230 100 Average 277 | . 78 432 286 167 Maximum Alert Level 2 | . 1 2 1 1 Low Security (%) 41 | 100 98 16 4 63 Level 1 26 | . 1 6 95 36 Level 2 32 | . . 76 . . Level 3 . | . . . . . Level 4 . | . . . . . Level 5 . | . . . . . High Security . | . . . . . Max Security . | . . . . . Squads Dispatched 14 | . . 5 5 4 Investigation 2 | . . 1 . 1 Extermination . | . . . . . Reinforcement 6 | . . 3 2 1 Assault 3 | . . 1 . 2 Garrison 3 | . . . 3 . Intercept . | . . . . . Searches Triggered . | . . . . . Construction Impeded . | . . . . . Haulers Reinforced . | . . . . . Active Scanning Responses . | . . . . . Cargo Convoy Interrupts . | . . . . . Stealth | -11 -10 -9 -8 -8 --------- Run | Jun Mat Mat Mat Sto Distress Signals 6 | . 1 2 3 . Communications Jammed . | . . . . . Distress Signals . | . . . . . Times Spotted 96 | . 12 39 14 31 Peak Tracking Total 16 | . 3 6 5 16 Tactical Retreats 12 | . 1 2 3 6 Traps | -11 -10 -9 -8 -8 ------- Run | Jun Mat Mat Mat Sto Traps Triggered . | . . . . . Indirectly . | . . . . . Trap Hack Attempts . | . . . . . Triggered . | . . . . . Disarmed . | . . . . . Reprogrammed . | . . . . . Reused . | . . . . . Traps Extracted . | . . . . . Installed . | . . . . . Triggered . | . . . . . Machines | -11 -10 -9 -8 -8 ---------- Run | Jun Mat Mat Mat Sto Machines Disabled 12 | . 6 5 . 1 Max in Single Turn 3 | . 1 3 . . Machines Repaired . | . . . . . Machines Sabotaged . | . . . . . Overloaded Fab Kills . | . . . . . Hacking | -11 -10 -9 -8 -8 --------- Run | Jun Mat Mat Mat Sto Machines Accessed 15 | . 5 7 1 2 Terminals 9 | . 4 2 1 2 Fabricators . | . . . . . Repair Stations 1 | . . 1 . . Recycling Units 3 | . 1 2 . . Scanalyzers 2 | . . 2 . . Garrison Access . | . . . . . Total Hacks 36 | . 10 21 2 3 Successful 21 | . 5 14 1 1 Failed 15 | . 5 7 1 2 Catastrophic 1 | . . . . 1 Database Lockouts . | . . . . . Manual . | . . . . . Terminals 20 | . 9 6 2 3 Fabricators . | . . . . . Repair Stations 3 | . . 3 . . Recycling Units 4 | . 1 3 . . Scanalyzers 9 | . . 9 . . Garrison Access . | . . . . . Terminal Hacks 9 | . 4 3 1 1 Prototype ID Bank 3 | . 2 1 . . Open Door 1 | . . . . 1 Locate Traps 3 | . 2 1 . . Investigation Status 1 | . . . 1 . Hauler Manifests 1 | . . 1 . . Fabricator Hacks . | . . . . . Repair Station Hacks 2 | . . 2 . . Scan Component 1 | . . 1 . . Repair 1 | . . 1 . . Recycling Unit Hacks 4 | . 1 3 . . Report Inventory 4 | . 1 3 . . Scanalyzer 6 | . . 6 . . Insert Component 2 | . . 2 . . Analyze 4 | . . 4 . . Garrison Access Hacks . | . . . . . Unauthorized Hacks . | . . . . . Terminals . | . . . . . Fabricators . | . . . . . Repair Stations . | . . . . . Recycling Units . | . . . . . Scanalyzers . | . . . . . Garrison Access . | . . . . . Data Cores Recovered 1 | . . . 1 . Used . | . . . . . Hacking Detections 11 | . 4 4 1 2 Full Trace Events 1 | . . 1 . . Feedback Events . | . . . . . Feedback Blocked . | . . . . . Robot Schematics Acquired . | . . . . . Robots Built . | . . . . . Authchips . | . . . . . Time . | . . . . . Total Robot Build Rating . | . . . . . Part Schematics Acquired 2 | . . 2 . . Parts Built . | . . . . . Authchips . | . . . . . Time . | . . . . . Total Part Build Rating . | . . . . . Parts Repaired 1 | . . 1 . . Time 26 | . . 26 . . Parts Recycled . | . . . . . Recycled Matter . | . . . . . Retrieved Matter . | . . . . . Retrieved Components . | . . . . . Parts Scanalyzed 2 | . . 2 . . Part Schematics Acquired 2 | . . 2 . . Parts Damaged 1 | . . 1 . . Bothacking | -11 -10 -9 -8 -8 ------------ Run | Jun Mat Mat Mat Sto Used RIF Installer . | . . . . . Robots Hacked . | . . . . . Non-combat . | . . . . . Combat . | . . . . . Robot Hacks Applied . | . . . . . Relay Couplers Released . | . . . . . Fabnet Peak Effective % . | . . . . . Robots Rewired . | . . . . . Allies Hacked . | . . . . . Hacks Repelled . | . . . . . Allies | -11 -10 -9 -8 -8 -------- Run | Jun Mat Mat Mat Sto Total Allies 2 | . . . . 2 Largest Group 2 | . . . . 2 Highest-Rated Group 62 | . . . . 62 Highest-Rated Ally 31 | . . . . 31 Total Orders 4 | . . . . 4 ROAM 1 | . . . . 1 EXPLORE 3 | . . . . 3 Ally Attacks 10 | . . . . 10 Total Damage 167 | . . . . 167 Kills 1 | . . . . 1 Allies Corrupted . | . . . . . Allies Melted . | . . . . . Intel | -11 -10 -9 -8 -8 ------- Run | Jun Mat Mat Mat Sto Robot Analysis Total . | . . . . . Derelict Logs Recovered . | . . . . . Drone Launches 4 | . . . . 4 Drone Recoveries 1 | . . . . 1 Exploration | -11 -10 -9 -8 -8 ------------- Run | Jun Mat Mat Mat Sto Turns Passed 3459 | 54 838 1440 689 438 Spaces Moved 2290 | 39 664 1068 371 148 Core 35 | 1 . . 11 23 Treads 12 | . . . . 12 Legs 495 | . . 22 360 113 Wheels 1748 | 38 664 1046 . . Hover . | . . . . . Flight . | . . . . . Fastest Speed 50 | 50 90 86 100 50 Average Speed 107 | 98 96 96 138 167 Slowest Speed 400 | 100 100 190 400 330 Overloaded Moves . | . . . . . Propulsion Burnouts . | . . . . . Robots Hopped . | . . . . . Cave-ins Triggered . | . . . . . Exploration Rate (%) 41 | 3 88 62 19 34 Regions Visited 4 Branch Regions 1 Pre-discovered Areas . | . . . . . Known Exits Taken 1 | . 1 . . . Unknown Exits Taken 3 | 1 . 1 1 . Scrap Searched . | . . . . . Spaces Dug 7 | . . . 7 . Terrain Destroyed 144 | . 14 109 21 . Melee . | . . . . . Projectile . | . . . . . AOE 144 | . 14 109 21 . Terrain Rammed . | . . . . . Walls Destroyed . | . . . . . Machines Disabled . | . . . . . Actions | -11 -10 -9 -8 -8 --------- Run | Jun Mat Mat Mat Sto Total 2821 | 54 766 1265 476 260 Wait 99 | . 24 15 36 24 Move 2287 | 38 663 1067 371 148 Hop . | . . . . . Pick Up 54 | 10 10 13 8 13 Fast Attach 18 | . 4 8 3 3 Attach 39 | 6 3 9 6 15 Detach 3 | . 1 1 1 . Swap 22 | . 3 15 3 1 Drop 29 | . 6 14 5 4 Fire 251 | . 51 123 41 36 Melee . | . . . . . Ram 2 | . 1 . 1 . Kick 2 | . . . 1 1 Crush 15 | . . . . 15 Escape Stasis . | . . . . . Rewire . | . . . . . Trap . | . . . . . Miscellaneous . | . . . . . Route ------- -11/Junkyard -10/Materials (discovered 4 exits: *Mat x3 / *Min) -9/Materials (discovered 2 exits: *Mat / *Min) -8/Materials -8/Storage History --------- Turn | Location | Event 24 | -11/Junkyard | Discovered new exit (range 15) 55 | -11/Junkyard | Entered Materials 251 | -10/Materials | Discovered new exit (range 15) 267 | -10/Materials | Identified exit to Materials 310 | -10/Materials | Build established: Mutant 386 | -10/Materials | Discovered new exit (range 7) 391 | -10/Materials | Identified exit to Mines 691 | -10/Materials | Discovered exit to Materials (range 13) 779 | -10/Materials | Discovered exit to Materials (range 4) 893 | -10/Materials | Entered another Materials area 893 | -9/Materials | Evolved 2 slots: Propulsion x1, Utility x1 1199 | -9/Materials | Build established: Scavenger-Mutant 1293 | -9/Materials | First assault squad dispatched 1326 | -9/Materials | Discovered new exit (range 14) 1406 | -9/Materials | Repaired Beam Cannon? 1575 | -9/Materials | Lost 3 parts (2n1u) 1874 | -9/Materials | Identified exit to Mines 2137 | -9/Materials | Discovered new exit (range 10) 2333 | -9/Materials | Entered another Materials area 2333 | -8/Materials | Evolved 2 slots: Utility x2 2430 | -8/Materials | Build established: Mutant 2989 | -8/Materials | Discovered new exit (range 16) 3022 | -8/Materials | Core integrity fell below 50% 3022 | -8/Materials | Entered Storage 3047 | -8/Storage | Lost 8 parts (1p2n3u2w) 3278 | -8/Storage | Met a pair of Derelict thieves 3371 | -8/Storage | Core integrity fell below 20% 3415 | -8/Storage | Lost 8 parts (1p3n2u2w) 3460 | -8/Storage | Destroyed by G-47 Trooper with Particle Gun Last Messages --------------- 03411_ M-28 Smith repairs M-28 Smith. 03412_ Slammed into G-47 Trooper. 03416_ M-28 Smith repairs G-47 Trooper. 03417_ Critical hit (Burn: +37). 03420_ G-47 Trooper IFF system glitched. 03421_ Slammed into Y-45 Defender. 03426_ Crushed S-10 Pest. 03426_ S-10 Pest destroyed. 03427_ Slammed into S-10 Pest. 03438_ Slammed into K-01 Serf. 03441_ Acquired Hvy. Armor Plating. 03449_ Aluminum Leg melted. 03449_ G-47 Trooper destroyed. 03449_ K-01 Serf collects debris. 03451_ G&DVZI31B|BGBKLFJO:NAMAJKBO=BHJK HWIRH1 03451_ K-01 Serf collects debris. 03455_ S-10 Pest destroyed. 03456_ R-06 Scavenger collects Flight Unit. 03457_ K-01 Serf collects debris. 03459_ R-06 Scavenger collects Imp. Heat Sink. Map ----- +----------------------------------------------------+ | ???????????????????????????????????# # | | ???????????????????????????????????##"T"######### | | ???????????????????????????????????????????????## | | ?????????????????????????????????????###########= | | ?????????????????????????????????????# =%% | | ?????????????????????????????????????# =[ | | ?????????????????????????????????????# | | ?????????????????????????????????????# ####### | | ?????????????????????????????????????# % #???##### | | ?????????????????????????????????????#% #???# | | ?????????????????????????????????????# #???# % | | ?????????????????????????????????????# #???# "" | | ?????????????????????????????????????# #???# "? | | ?????????????????????????????????????# #???# "? | | ?????????????????????????????????????# #####% "? | | ?????????????????????????????????????# **/!!"? | | ?????????????????????????????????????# #####]! | | ?????????????????????????????????????# #??###### | | ?????????????????????????????????????# #? | | ?????????????????????????????????????# #? | | ?????????????????????#???????????????# # | | ????????????????????## ??????????????# # | | ????????????????????? ?????????????# + | | ??????????????????#####+#####????????# # | | ??????????????????# #????????# + | | ??????????????????# tt @kr########## #? | | ??????????????????# m|smggYY g=[ #?####### | | ??????????????????# =kg###########/#####????? | | ??????????????????# k #?????#[ #????? | | ??????????????????# #?????# " ####?? | | ??????????????????# #????## """ "G" """#?? | | ??????????????????#[ / #????# """ " " R"#?? | | ??????????????????###########????## """ """#?? | | ??????????????????????????????????# ####?? | | ??????????????????????????????????# #????? | | ??????????????????????????????????# = !#????? | | ??????????????????????????????????#####"Y"###????? | | ??????????????????????????????????????#"""#??????? | | ???????????????????????????????????????####??????? | | ?????????????????????????????????????????????????? | | ?????????????????????????????????????????????????? | | ?????????????????????????????????????????????????? | | ?????????????????????????????????????????????????? | | | | | | | | | | | | | | | +----------------------------------------------------+ Best States ------------- Heat Dissipation 45 Energy Generation 14 Energy Capacity 280 Matter Stores 300 Matter Capacity 300 Sight Range 18 Terrain Scan Density 10 Additional Mass Support 9 Armor Coverage 600 Utility Shielding 33 Evasion (%) 55 Recoil Reduction 3 Defensive Hacking 10 Item Schematics ----------------- Cld. Ion Engine | -9/Materials | Scanalyzed Mni. Grenade Launcher | -9/Materials | Scanalyzed Robot Schematics ------------------ None Fabricated ------------ Nothing Alien Tech Used ----------------- None Achievements -------------- None Challenges ------------ None Game ------ Seed FlakSmartbombJammer Manual? 0 Play Time 01:12:21 Cumulative 129.6 hours Start 2023.08.30 @ 06:50:28 End 2023.08.30 @ 08:32:09 Sessions 1 Manual Loads 0 Difficulty Rogue Special Mode None Game No. 59 Rogue 56 Adventurer 3 Explorer 0 Win Type - Total 0 Types 0/0/0/0/0/0/0/0/0 Lore% 23 Gallery% 42 Achievement% 28 Wizard Run 0 Options --------- ASCII 0 Keyboard 0 Movement Mouse Keybinds 0 Fullscreen 1 Font 18/SmallcapsGlow Map View 76x50 Tactical HUD 1 Map Filters NONE Filters NONE Steam 1 RUN: 4c5acaa9-5d79-42b2-a7fc-70fa13b4dfc3